Workbook

Sheet Sheet1
B1: Brick 1 | C1: Brick 2 | D1: Brick 3 | E1: Brick 4 | F1: Brick 5 | G1: Brick 6 | H1: Mean | I1: Standard Deviation | J1: SEM
A2: Diameter | B2: 0.369 | C2: 0.369 | D2: 0.369 | E2: 0.368 | F2: 0.368 | G2: 0.369 | H2: =AVERAGE(B2:G2) -> 0.369 | I2: =STDEV(B2:G2) -> 0.001 | J2: =_xlfn.STDEV.S(B2:G2)/SQRT(6) -> 0.000
A3: Stud to Stud | B3: 0.995 | C3: 1.002 | D3: 1.004 | E3: 1.002 | F3: 1.002 | G3: 1.003 | H3: 1.001 | I3: 0.003 | J3: =_xlfn.STDEV.S(B3:G3)/SQRT(6) -> 0.001
A4: Inside Height/Depth | B4: 0.756 | C4: 0.752 | D4: 0.753 | E4: 0.757 | F4: 0.757 | G4: 0.754 | H4: =AVERAGE(B4:G4) -> 0.755 | I4: =STDEV(B4:G4) -> 0.002 | J4: =_xlfn.STDEV.S(B4:G4)/SQRT(6) -> 0.001
A5: Inside Width | B5: 1.248 | C5: 1.248 | D5: 1.249 | E5: 1.252 | F5: 1.252 | G5: 1.251 | H5: 1.250 | I5: 0.002 | J5: =_xlfn.STDEV.S(B5:G5)/SQRT(6) -> 0.001
A6: Inside Length | B6: 1.248 | C6: 1.248 | D6: 1.249 | E6: 1.252 | F6: 1.252 | G6: 1.251 | H6: 1.250 | I6: 0.002 | J6: 0.001
A25: Error Propagation
A26: Inside Volume | B26: =B4*B5*B6 -> 1.177 | C26: =C4*C5*C6 -> 1.171 | D26: 1.175 | E26: 1.187 | F26: 1.187 | G26: 1.180 | H26: 1.179
A27: Uncertainty | B27: =B26*SQRT((I4/B4)^2+(I5/B5)^2+(I6/B6)^2) -> 0.004 | C27: =C26*SQRT((I4/C4)^2+(I5/C5)^2+(I6/C6)^2) -> 0.004 | D27: =D26*SQRT((I4/D4)^2+(I5/D5)^2+(I6/D6)^2) -> 0.004 | E27: =E26*SQRT((I4/E4)^2+(I5/E5)^2+(I6/E6)^2) -> 0.004 | F27: =F26*SQRT((I4/F4)^2+(I5/F5)^2+(I6/F6)^2) -> 0.004 | G27: =G26*SQRT((I4/G4)^2+(I5/G5)^2+(I6/G6)^2) -> 0.004 | H27: =H26*SQRT((I4/H4)^2+(I5/H5)^2+(I6/H6)^2) -> 0.004
